Workbook

Sheet CG
C1: Etat | D1: Nb | F1: Origine du contact | G1: Nb | I1: Rendez-vous obtenu par mailing | L1: Délais de réponse moyen | N1: Nombre moyen d'AVP | Q1: % moyen de MB
C2: En cours | D2: =COUNTIF(Tableau1[[#All],[Etat]],"En cours") -> 16 | F2: LP | G2: =COUNTIF(Tableau1[[#All],[Origine du contact]],"LP") -> 2 | I2: Oui | J2: =COUNTIFS(Tableau1[[#All],[Premier RDV obtenu]],"Oui",Tableau1[[#All],[Origine du contact]],"Mailing") -> 3 | L2: =AVERAGE(Tableau1[[#All],[Délais de réponse]]) -> 1900-01-01T14:44:59.944 | N2: =AVERAGE(Tableau1[Nb AVP]) -> 7.666666667 | Q2: =AVERAGE(Tableau1[% Marge brute]) -> 0.135
C3: Stand by | D3: =COUNTIF(Tableau1[[#All],[Etat]],"Stand by") -> 6 | F3: Site TC | G3: =COUNTIF(Tableau1[[#All],[Origine du contact]],"Site TC") -> 1 | I3: Non | J3: =COUNTIFS(Tableau1[[#All],[Premier RDV obtenu]],"Non",Tableau1[[#All],[Origine du contact]],"Mailing") -> 3
A4: logo | C4: Abandon | D4: =COUNTIF(Tableau1[[#All],[Etat]],"Abandon") -> 5 | F4: Site SV | G4: =COUNTIF(Tableau1[[#All],[Origine du contact]],"Site SV") -> 5 | I4: En attente | J4: =COUNTIFS(Tableau1[[#All],[Origine du contact]],"Mailing",Tableau1[[#All],[Premier RDV obtenu]],"") -> 2 | L4: Montant moyen du 1er chiffrage | N4: Nb moyen de RDV (global) | Q4: Nb moyen de RDV affaires signés
C5: Signé | D5: =COUNTIF(Tableau1[[#All],[Etat]],"Signé") -> 2 | F5: Tel | G5: =COUNTIF(Tableau1[[#All],[Origine du contact]],"Tel") -> 4 | I5: Total | J5: =SUM(J2:J4) -> 8 | L5: =AVERAGE(Tableau1[Montant du 1er estimation]) -> 1377603.5 | N5: =AVERAGE(Tableau1[Nb RDV]) -> 6.5 | Q5: =AVERAGEIFS(Tableau1[Nb RDV],Tableau1[Etat],"Signé") -> 7
C6: Vide | D6: =COUNTIF(Tableau1[[#All],[Etat]],"") -> 9 | F6: Mail | G6: =COUNTIF(Tableau1[[#All],[Origine du contact]],"Mail") -> 0
C7: Total | D7: =SUM(D2:D6) -> 38 | F7: Geotruc | G7: =COUNTIF(Tableau1[[#All],[Origine du contact]],"Geotruc") -> 3 | I7: Rendez -vous obtenu (global) | L7: Montant moyen à la signature | N7: Somme marge brute générer
F8: Mailing | G8: =COUNTIF(Tableau1[[#All],[Origine du contact]],"Mailing") -> 8 | I8: Oui | J8: =COUNTIF(Tableau1[[#All],[Premier RDV obtenu]],"Oui") -> 9 | L8: =AVERAGE(Tableau1[Montant à la signature]) -> 1345096.667 | N8: =SUM(Tableau1[Marge brute]) -> 1049268
F9: Réseau | G9: =COUNTIF(Tableau1[[#All],[Origine du contact]],"Réseau") -> 2 | I9: Non | J9: =COUNTIF(Tableau1[[#All],[Premier RDV obtenu]],"Non") -> 9
F10: Vide | G10: =COUNTIF(Tableau1[[#All],[Origine du contact]],"") -> 13 | I10: En attente | J10: =COUNTIF(Tableau1[[#All],[Premier RDV obtenu]],"") -> 20 | L10: Delta 1er chiffrage et signature (%)
F11: Total | G11: =SUM(G2:G10) -> 38 | I11: Total | J11: =SUM(J8:J10) -> 38 | L11: =L8/L5 -> 0.9764033459
A13: N° affaire | B13: Etat | C13: Entreprise | D13: Noms | E13: Adresse | F13: Telephone | G13: Adresse mail | H13: Date | I13: Origine du contact | J13: Code APE | K13: CA | L13: Resultat | M13: Effectif | N13: EBE | O13: Projet | P13: Premier RDV obtenu | Q13: Date du rappel | R13: Délais de réponse | S13: Commentaire | T13: Montant du 1er estimation | U13: Nb AVP | V13: Nb RDV | W13: Volume horaire | X13: Montant à la signature | Y13: Date de signature | Z13: % Marge brute | AA13: Marge brute
C14: aaa | R14: =IF(Tableau1[[#This Row],[Date du rappel]]="","",Tableau1[[#This Row],[Date du rappel]]-Tableau1[[#This Row],[Date]]) ->  | AA14: =X14*Z14 -> 0
C15: hhdfhhef | R15: =IF(Tableau1[[#This Row],[Date du rappel]]="","",Tableau1[[#This Row],[Date du rappel]]-Tableau1[[#This Row],[Date]]) ->  | AA15: =X15*Z15 -> 0
C16: uhç | R16: =IF(Tableau1[[#This Row],[Date du rappel]]="","",Tableau1[[#This Row],[Date du rappel]]-Tableau1[[#This Row],[Date]]) ->  | AA16: =X16*Z16 -> 0
C17: iuybib | R17: =IF(Tableau1[[#This Row],[Date du rappel]]="","",Tableau1[[#This Row],[Date du rappel]]-Tableau1[[#This Row],[Date]]) ->  | AA17: =X17*Z17 -> 0
B18: Stand by | C18: szs | H18: 2019-04-04T09:46:43 | R18: =IF(Tableau1[[#This Row],[Date du rappel]]="","",Tableau1[[#This Row],[Date du rappel]]-Tableau1[[#This Row],[Date]]) ->  | AA18: =X18*Z18 -> 0
C19: gsgds | R19: =IF(Tableau1[[#This Row],[Date du rappel]]="","",Tableau1[[#This Row],[Date du rappel]]-Tableau1[[#This Row],[Date]]) ->  | AA19: =X19*Z19 -> 0
B20: En cours | C20: giugouggohoph | H20: 2019-04-02T14:26:09 | I20: Site TC | P20: Oui | Q20: 2019-04-04T09:46:53 | R20: =IF(Tableau1[[#This Row],[Date du rappel]]="","",Tableau1[[#This Row],[Date du rappel]]-Tableau1[[#This Row],[Date]]) -> 1900-01-01T19:20:44 | AA20: =X20*Z20 -> 0
B21: En cours | C21: giygigiu | H21: 2019-04-02T14:25:14 | R21: =IF(Tableau1[[#This Row],[Date du rappel]]="","",Tableau1[[#This Row],[Date du rappel]]-Tableau1[[#This Row],[Date]]) ->  | Y21: 43557.72069 | AA21: 0
C22: tdtyyt | R22: =IF(Tableau1[[#This Row],[Date du rappel]]="","",Tableau1[[#This Row],[Date du rappel]]-Tableau1[[#This Row],[Date]]) ->  | Y22: 43557.72103 | AA22: 0
C23: yiuiuobouihoi | R23: =IF(Tableau1[[#This Row],[Date du rappel]]="","",Tableau1[[#This Row],[Date du rappel]]-Tableau1[[#This Row],[Date]]) ->  | AA23: 0
C24: jiojoin | R24: =IF(Tableau1[[#This Row],[Date du rappel]]="","",Tableau1[[#This Row],[Date du rappel]]-Tableau1[[#This Row],[Date]]) ->  | AA24: 0
R25: =IF(Tableau1[[#This Row],[Date du rappel]]="","",Tableau1[[#This Row],[Date du rappel]]-Tableau1[[#This Row],[Date]]) ->  | AA25: 0
A26: 848 | B26: En cours | C26: rggsgd | H26: 2019-03-28T15:31:10 | I26: Tel | P26: Oui | Q26: 2019-03-29T17:32:39 | R26: =IF(Tableau1[[#This Row],[Date du rappel]]="","",Tableau1[[#This Row],[Date du rappel]]-Tableau1[[#This Row],[Date]]) -> 1900-01-01T02:01:29 | AA26: =X26*Z26 -> 0
B27: Stand by | C27: sdsqsqqs | H27: 2019-03-28T16:04:01 | I27: Site SV | P27: Oui | Q27: 2019-03-29T17:32:36 | R27: =IF(Tableau1[[#This Row],[Date du rappel]]="","",Tableau1[[#This Row],[Date du rappel]]-Tableau1[[#This Row],[Date]]) -> 1900-01-01T01:28:35 | AA27: 0
B28: Signé | C28: boby | H28: 2019-03-28T16:04:04 | I28: Mailing | P28: Oui | Q28: 2019-03-29T17:32:42 | R28: =IF(Tableau1[[#This Row],[Date du rappel]]="","",Tableau1[[#This Row],[Date du rappel]]-Tableau1[[#This Row],[Date]]) -> 1900-01-01T01:28:38 | V28: 6 | AA28: 0
B29: Signé | C29: CC | H29: 2019-03-28T15:30:50 | I29: LP | P29: Non | Q29: 2019-03-29T17:30:29 | R29: =IF(Tableau1[[#This Row],[Date du rappel]]="","",Tableau1[[#This Row],[Date du rappel]]-Tableau1[[#This Row],[Date]]) -> 1900-01-01T01:59:39 | V29: 8 | AA29: 0
A30: 64 | B30: En cours | H30: 2019-03-28T16:04:18 | I30: Mailing | P30: Oui | Q30: 2019-03-29T17:32:45 | R30: =IF(Tableau1[[#This Row],[Date du rappel]]="","",Tableau1[[#This Row],[Date du rappel]]-Tableau1[[#This Row],[Date]]) -> 1900-01-01T01:28:27 | AA30: 0
A31: 65 | B31: Abandon | C31: m | H31: 2019-03-28T16:04:23 | I31: Mailing | P31: Non | Q31: 2019-03-29T17:30:26 | R31: =IF(Tableau1[[#This Row],[Date du rappel]]="","",Tableau1[[#This Row],[Date du rappel]]-Tableau1[[#This Row],[Date]]) -> 1900-01-01T01:26:03 | AA31: 0
A32: 203 | B32: Abandon | C32: mid | D32: ff | E32: efe | F32: fe | H32: 2019-03-28T15:31:07 | I32: Site SV | P32: Non | Q32: 2019-03-29T17:30:24 | R32: =IF(Tableau1[[#This Row],[Date du rappel]]="","",Tableau1[[#This Row],[Date du rappel]]-Tableau1[[#This Row],[Date]]) -> 1900-01-01T01:59:17 | AA32: =X32*Z32 -> 0
A33: 102 | B33: En cours | C33: rod | H33: 2019-04-01T11:54:50 | I33: Site SV | P33: Non | Q33: 2019-04-01T11:54:54 | R33: =IF(Tableau1[[#This Row],[Date du rappel]]="","",Tableau1[[#This Row],[Date du rappel]]-Tableau1[[#This Row],[Date]]) -> 00:00:04 | AA33: =X33*Z33 -> 0
A34: 99 | B34: En cours | C34: WW | E34: fdf | H34: 2019-03-29T17:06:04 | M34: 12 | P34: Oui | Q34: 2019-04-01T11:54:59 | R34: =IF(Tableau1[[#This Row],[Date du rappel]]="","",Tableau1[[#This Row],[Date du rappel]]-Tableau1[[#This Row],[Date]]) -> 1900-01-02T18:48:55 | AA34: =X34*Z34 -> 0
A35: 21 | B35: Stand by | C35: UU | H35: 2019-03-28T15:31:44 | I35: Mailing | J35: ddff | K35: 50000 | N35: 51151 | P35: Oui | Q35: 2019-03-29T17:35:31 | R35: =IF(Tableau1[[#This Row],[Date du rappel]]="","",Tableau1[[#This Row],[Date du rappel]]-Tableau1[[#This Row],[Date]]) -> 1900-01-01T02:03:47 | S35: cool | T35: 15898 | U35: 6 | V35: 5 | W35: 8 | X35: 15000 | Z35: 0.16 | AA35: =X35*Z35 -> 2400
A36: 58 | B36: Abandon | C36: MM | H36: 2019-03-28T15:31:50 | I36: Mailing | N36: 5151 | P36: Non | Q36: 2019-04-01T08:38:29 | R36: =IF(Tableau1[[#This Row],[Date du rappel]]="","",Tableau1[[#This Row],[Date du rappel]]-Tableau1[[#This Row],[Date]]) -> 1900-01-03T17:06:39 | AA36: =X36*Z36 -> 0
A37: 88 | B37: En cours | C37: Lidl | H37: 2019-03-28T15:32:06 | I37: Geotruc | L37: 5151 | P37: Oui | Q37: 2019-03-29T17:03:06 | R37: =IF(Tableau1[[#This Row],[Date du rappel]]="","",Tableau1[[#This Row],[Date du rappel]]-Tableau1[[#This Row],[Date]]) -> 1900-01-01T01:31:00 | S37: pas cool | T37: 48894 | U37: 4 | V37: 6 | W37: 4 | X37: 45000 | Z37: 0.12 | AA37: =X37*Z37 -> 5400
A38: 77 | B38: En cours | C38: Mcdo | D38: fsdfdf | E38: ezfzef | H38: 2019-03-28T15:31:57 | I38: Tel | N38: 648 | P38: Oui | Q38: 2019-04-01T08:38:32 | R38: =IF(Tableau1[[#This Row],[Date du rappel]]="","",Tableau1[[#This Row],[Date du rappel]]-Tableau1[[#This Row],[Date]]) -> 1900-01-03T17:06:35 | AA38: =X38*Z38 -> 0
A39: 84 | B39: En cours | C39: II | H39: 2019-03-28T15:31:54 | I39: Site SV | M39: 15 | P39: Non | Q39: 2019-03-29T17:03:10 | R39: =IF(Tableau1[[#This Row],[Date du rappel]]="","",Tableau1[[#This Row],[Date du rappel]]-Tableau1[[#This Row],[Date]]) -> 1900-01-01T01:31:16 | AA39: =X39*Z39 -> 0
A40: 94 | B40: En cours | C40: HH | H40: 2019-03-28T15:31:52 | I40: Tel | P40: Non | Q40: 2019-04-01T08:38:07 | R40: =IF(Tableau1[[#This Row],[Date du rappel]]="","",Tableau1[[#This Row],[Date du rappel]]-Tableau1[[#This Row],[Date]]) -> 1900-01-03T17:06:15 | S40: top | T40: 684 | U40: 12 | V40: 10 | W40: 12 | X40: 600 | Z40: 0.11 | AA40: =X40*Z40 -> 66
A41: 25 | B41: En cours | C41: FF | I41: Tel | K41: 75885 | N41: 98466 | R41: =IF(Tableau1[[#This Row],[Date du rappel]]="","",Tableau1[[#This Row],[Date du rappel]]-Tableau1[[#This Row],[Date]]) ->  | AA41: =X41*Z41 -> 0
A42: 68 | B42: Stand by | C42: EE | I42: Geotruc | R42: =IF(Tableau1[[#This Row],[Date du rappel]]="","",Tableau1[[#This Row],[Date du rappel]]-Tableau1[[#This Row],[Date]]) ->  | AA42: =X42*Z42 -> 0
A43: 74 | B43: Abandon | C43: DD | G43: zefzef | M43: 60 | R43: =IF(Tableau1[[#This Row],[Date du rappel]]="","",Tableau1[[#This Row],[Date du rappel]]-Tableau1[[#This Row],[Date]]) ->  | S43: riche | T43: 8189818 | U43: 15 | V43: 12 | W43: 16 | X43: 8000000 | Z43: 0.13 | AA43: =X43*Z43 -> 1040000
A44: 98 | B44: En cours | C44: CC | H44: 2019-04-01T08:37:31 | I44: Mailing | K44: 5151 | P44: Non | Q44: 2019-04-01T08:38:44 | R44: =IF(Tableau1[[#This Row],[Date du rappel]]="","",Tableau1[[#This Row],[Date du rappel]]-Tableau1[[#This Row],[Date]]) -> 00:01:13 | AA44: =X44*Z44 -> 0
A45: 31 | B45: En cours | C45: BB | I45: Mailing | R45: =IF(Tableau1[[#This Row],[Date du rappel]]="","",Tableau1[[#This Row],[Date du rappel]]-Tableau1[[#This Row],[Date]]) ->  | AA45: =X45*Z45 -> 0
A46: 32 | B46: En cours | C46: AA | E46: ezfzef | I46: Mailing | N46: 89499 | R46: =IF(Tableau1[[#This Row],[Date du rappel]]="","",Tableau1[[#This Row],[Date du rappel]]-Tableau1[[#This Row],[Date]]) ->  | S46: pauvre | T46: 9843 | U46: 3 | V46: 2 | W46: 8 | X46: 9500 | Z46: 0.14 | AA46: 1330
A47: 33 | B47: Abandon | C47: Jack | D47: zzfzf | I47: Réseau | L47: 151 | M47: 20 | R47: =IF(Tableau1[[#This Row],[Date du rappel]]="","",Tableau1[[#This Row],[Date du rappel]]-Tableau1[[#This Row],[Date]]) ->  | AA47: 0
A48: 36 | B48: En cours | C48: Puto | I48: LP | R48: =IF(Tableau1[[#This Row],[Date du rappel]]="","",Tableau1[[#This Row],[Date du rappel]]-Tableau1[[#This Row],[Date]]) ->  | AA48: 0
A49: 59 | B49: Stand by | C49: Donald | H49: 2019-03-29T17:37:24 | I49: Site SV | M49: 14 | P49: Non | Q49: 2019-04-01T08:38:47 | R49: =IF(Tableau1[[#This Row],[Date du rappel]]="","",Tableau1[[#This Row],[Date du rappel]]-Tableau1[[#This Row],[Date]]) -> 1900-01-02T15:01:23 | S49: copain | T49: 484 | U49: 6 | V49: 3 | W49: 4 | X49: 480 | Z49: 0.15 | AA49: 72
A50: 95 | B50: Stand by | C50: Mini | I50: Geotruc | R50: =IF(Tableau1[[#This Row],[Date du rappel]]="","",Tableau1[[#This Row],[Date du rappel]]-Tableau1[[#This Row],[Date]]) ->  | AA50: 0
A51: 2 | B51: En cours | C51: Mickey | I51: Réseau | M51: 10 | R51: =IF(Tableau1[[#This Row],[Date du rappel]]="","",Tableau1[[#This Row],[Date du rappel]]-Tableau1[[#This Row],[Date]]) ->  | AA51: 0

Sheet Planning
A4: N° affaire | B4: Etat | C4: Entreprise | D4: Semaine 1 | E4: Semaine 2 | F4: Semaine 3 | G4: Semaine 4 | H4: Semaine 5 | I4: Semaine 6 | J4: Semaine 7
C5: aaa | D5: 2
C6: hhdfhhef | E6: 3
C7: uhç | F7: 4
C8: iuybib
B9: Stand by | C9: szs
C10: gsgds
B11: En cours | C11: giugouggohoph
B12: En cours | C12: giygigiu
C13: tdtyyt
C14: yiuiuobouihoi
C15: jiojoin
A17: 848 | B17: En cours | C17: rggsgd
B18: Stand by | C18: sdsqsqqs
B19: Signé | C19: boby
B20: Signé | C20: CC
A21: 64 | B21: En cours
A22: 65 | B22: Abandon | C22: m
A23: 203 | B23: Abandon | C23: mid
A24: 102 | B24: En cours | C24: rod
A25: 99 | B25: En cours | C25: WW
A26: 21 | B26: Stand by | C26: UU
A27: 58 | B27: Abandon | C27: MM
A28: 88 | B28: En cours | C28: Lidl
A29: 77 | B29: En cours | C29: Mcdo
A30: 84 | B30: En cours | C30: II
A31: 94 | B31: En cours | C31: HH
A32: 25 | B32: En cours | C32: FF
A33: 68 | B33: Stand by | C33: EE
A34: 74 | B34: Abandon | C34: DD
A35: 98 | B35: En cours | C35: CC
A36: 31 | B36: En cours | C36: BB
A37: 32 | B37: En cours | C37: AA
A38: 33 | B38: Abandon | C38: Jack
A39: 36 | B39: En cours | C39: Puto
A40: 59 | B40: Stand by | C40: Donald
A41: 95 | B41: Stand by | C41: Mini
A42: 2 | B42: En cours | C42: Mickey
